bitfinex-derivatives/quotes_ETHF0:USTF0_20260125
["timestamp","ask_amount","ask_price","bid_price","bid_amount"]
[1769311520764,0.00343748,2949.9,2948.7,1.991]
[1769311520960,4.34056588,2949.8,2948.7,1.991]
[1769311521159,4.34056588,2949.7,2948.7,1.991]
[1769311521361,0.00343748,2949.9,2948.7,1.991]
[1769311521561,4.34114603,2949.8,2948.7,1.991]
[1769311521862,4.34114603,2949.7,2948.7,1.991]
[1769311522058,0.00343748,2949.9,2948.7,1.991]
[1769311522261,4.34114735,2949.8,2948.7,1.991]
[1769311522565,4.34114735,2949.7,2948.7,1.991]
[1769311522865,0.00343748,2949.9,2948.7,1.991]
[1769311523068,4.341425,2949.8,2948.7,1.991]
[1769311523266,4.341425,2949.7,2948.7,1.991]
[1769311523471,0.00343748,2949.9,2948.7,1.991]
[1769311523668,4.34175823,2949.8,2948.7,1.991]
[1769311523970,4.34175823,2949.7,2948.7,1.991]
[1769311524159,0.33036937,2949.8,2948.8,1.991]
[1769311524361,4.34175748,2949.7,2948.8,1.991]
[1769311524562,4.34175748,2949.6,2948.8,1.991]
[1769311524865,0.33036937,2949.8,2948.8,1.991]
[1769311525059,4.34213863,2949.7,2948.8,1.991]
[1769311525262,4.34213863,2949.6,2948.5,0.0040051]
[1769311525459,0.33036937,2949.8,2948.6,1.991]
[1769311525662,4.34208499,2949.7,2948.6,1.991]
[1769311525970,0.33036937,2949.8,2948.5,0.0040051]
[1769311525971,4.34208499,2949.6,2948.7,1.991]
[1769311526159,0.33036937,2949.8,2948.7,1.991]
[1769311526364,4.34208985,2949.7,2948.7,1.991]
[1769311526566,4.34208985,2949.6,2948.7,1.991]
[1769311526766,0.33036937,2949.8,2948.7,1.991]
[1769311527071,4.34199316,2949.7,2948.7,1.991]
[1769311527371,4.34199316,2949.6,2948.7,1.991]
[1769311527670,0.33036937,2949.8,2948.7,1.991]
[1769311527864,4.34191467,2949.7,2948.7,1.991]
[1769311528065,4.34191467,2949.6,2948.7,1.991]
[1769311528268,0.33036937,2949.8,2948.7,1.991]
[1769311528472,4.34184632,2949.7,2948.7,1.991]
[1769311528660,4.34184632,2949.6,2948.7,1.991]
[1769311528865,0.33036937,2949.8,2948.7,1.991]
[1769311529167,4.34172549,2949.7,2948.7,1.991]
[1769311529365,4.34172549,2949.6,2948.7,1.991]
[1769311529575,0.33036937,2949.8,2948.7,1.991]
[1769311529872,4.34159078,2949.7,2948.7,1.991]
[1769311530072,4.34159078,2949.6,2948.7,1.991]
[1769311530273,0.33036937,2949.8,2948.7,1.991]
[1769311530580,4.34149223,2949.7,2948.7,1.991]
[1769311530775,4.34149223,2949.6,2948.7,1.991]
[1769311530969,0.33036937,2949.8,2948.7,1.991]
[1769311531171,4.34148732,2949.7,2948.7,1.991]
[1769311531371,4.34148732,2949.6,2948.7,1.991]
[1769311531566,0.00343748,2949.9,2948.7,1.991]
[1769311531768,4.3415385,2949.8,2948.7,1.991]
[1769311531964,4.3415385,2949.7,2948.7,1.991]
[1769311532165,0.00343748,2949.9,2948.7,1.991]
[1769311532475,4.34152719,2949.8,2948.7,1.991]
[1769311532670,4.34152719,2949.7,2948.7,1.991]
[1769311532874,0.00343748,2949.9,2948.7,1.991]
[1769311533168,4.34156285,2949.8,2948.7,1.991]
[1769311533373,4.34156285,2949.7,2948.7,1.991]
[1769311533574,0.00343748,2949.9,2948.7,1.991]
[1769311533774,4.34160226,2949.8,2948.7,1.991]
[1769311533974,4.34160226,2949.7,2948.7,1.991]
[1769311534176,0.00343748,2949.9,2948.7,1.991]
[1769311534376,4.34160169,2949.8,2948.7,1.991]
[1769311534575,0.00343748,2949.9,2948.7,1.991]
[1769311534576,4.34160169,2949.7,2948.7,1.991]
[1769311534776,0.00343748,2949.9,2948.7,1.991]
[1769311534970,4.34164356,2949.8,2948.7,1.991]
[1769311535171,4.34164356,2949.7,2948.7,1.991]
[1769311535471,0.00343748,2949.9,2948.7,1.991]
[1769311535671,4.34166223,2949.8,2948.7,1.991]
[1769311535866,4.34166223,2949.7,2948.5,0.0040051]
[1769311536066,0.3339535,2949.9,2948.5,0.0040051]
[1769311536275,4.67217899,2949.8,2948.6,1.991]
[1769311536470,4.34166297,2949.7,2948.6,1.991]
[1769311544890,4.34166297,2949.7,2948.7,0.7819506]
[1769311550692,4.67217899,2949.7,2948.7,0.7819506]
[1769311550892,4.34166297,2949.6,2948.7,0.7819506]
[1769311556196,4.34166297,2949.6,2948.8,1.991]
[1769311564603,4.67473721,2949.6,2948.5,0.7859557]
[1769311564800,0.33307424,2949.6,2948.6,1.991]
[1769311566296,4.34830791,2949.5,2948.5,0.7859557]
[1769311566496,0.33307424,2949.6,2948.5,0.0040051]
[1769311566703,0.33307424,2949.0,2947.8,0.7819506]
[1769311567000,4.34693764,2948.9,2947.9,1.991]
[1769311567203,0.33307424,2949.0,2947.9,1.991]
[1769311567702,0.33307424,2949.0,2947.9,1.99439284]
[1769311572509,0.33307424,2949.0,2947.9,0.00339284]
[1769311572807,0.33307424,2949.0,2948.0,1.991]
[1769311574705,0.33307424,2949.0,2947.9,0.00339284]
[1769311574916,0.33307424,2949.0,2948.0,1.991]
[1769311575805,0.3636142,2948.8,2947.9,0.00339284]
[1769311576109,0.3636142,2948.8,2947.9,1.99439284]
[1769311576407,0.3636142,2948.8,2947.9,0.00339284]
[1769311580312,0.7819506,2948.7,2947.9,0.00339284]
[1769311580505,0.3636142,2948.6,2947.3,0.7819506]
[1769311581511,0.3636142,2948.6,2947.3,0.784902]
[1769311592917,0.36058423,2948.8,2947.6,0.7819506]
[1769311593220,0.1698,2949.1,2947.4,0.7819506]
[1769311593221,0.36058423,2948.6,2947.4,0.7819506]
[1769311596224,4.69675258,2948.5,2947.3,0.0029514]
[1769311596418,4.36235367,2948.4,2947.3,0.0029514]
[1769311596726,0.36058423,2948.4,2947.3,0.0029514]
[1769311600124,0.36058423,2948.4,2947.4,0.7819506]
[1769311602427,1.14253483,2948.7,2947.4,0.7819506]
[1769311602724,4.3642883,2948.6,2947.4,0.7819506]
[1769311602925,4.3642883,2948.5,2947.4,0.7819506]
[1769311603117,4.3642883,2948.4,2947.4,0.7819506]
[1769311603318,0.36058423,2948.7,2947.4,0.7819506]
[1769311603518,4.36497756,2948.6,2947.4,0.7819506]
[1769311603719,4.36497756,2948.5,2947.4,0.7819506]
[1769311603916,4.36497756,2948.4,2947.4,0.7819506]
[1769311604117,0.36058423,2948.7,2947.4,0.7819506]
[1769311604320,4.36497748,2948.6,2947.4,0.7819506]
[1769311604527,4.36497748,2948.5,2947.4,0.7819506]
[1769311604727,4.36497748,2948.4,2947.4,0.7819506]
[1769311604928,4.36497748,2948.3,2947.4,0.7819506]
[1769311605129,0.36058423,2948.6,2947.4,0.7819506]
[1769311605330,4.36587063,2948.5,2947.4,0.7819506]
[1769311605626,4.36587063,2948.4,2947.4,0.7819506]
[1769311605830,4.36587063,2948.3,2947.4,0.7819506]
[1769311606018,0.36058423,2948.6,2947.4,0.7819506]
[1769311606221,4.36708062,2948.5,2947.4,0.7819506]
[1769311606424,4.36708062,2948.4,2947.4,0.7819506]
[1769311606626,4.36708062,2948.3,2947.4,0.7819506]
[1769311606827,0.36058423,2948.6,2947.4,0.7819506]
[1769311607037,4.36736375,2948.5,2947.3,0.0029514]
[1769311607234,4.36736375,2948.4,2947.3,0.0029514]
[1769311607626,4.36736375,2948.3,2947.3,0.0029514]
[1769311607829,0.36058423,2948.6,2947.3,0.0029514]
[1769311608126,4.36749275,2948.5,2947.3,0.0029514]
[1769311608330,4.36749275,2948.4,2947.3,0.0029514]
[1769311608635,4.36749275,2948.3,2947.3,0.36268043]
[1769311608829,0.36058423,2948.6,2947.3,0.36268043]
[1769311609029,4.36767635,2948.5,2947.3,0.36268043]
[1769311609234,4.36767635,2948.4,2947.3,0.36268043]
[1769311609433,4.36767635,2948.3,2947.3,0.36268043]
[1769311609634,0.36058423,2948.6,2947.3,0.36268043]
[1769311609836,4.36794592,2948.5,2947.3,0.36268043]
[1769311610134,4.36794592,2948.4,2947.3,0.36268043]
[1769311610334,4.36794592,2948.3,2947.3,0.36268043]
[1769311610635,0.36058423,2948.6,2947.3,0.36268043]
[1769311610833,4.36827497,2948.5,2947.3,0.36268043]
[1769311611033,4.36827497,2948.4,2947.3,0.36268043]
[1769311611229,4.36827497,2948.3,2947.3,0.36268043]
[1769311611426,0.36058423,2948.6,2947.3,0.36268043]
[1769311611626,4.36832242,2948.5,2947.3,0.36268043]
[1769311611932,4.36832242,2948.4,2947.3,0.36268043]
[1769311612133,0.36058423,2948.6,2947.3,0.36268043]
[1769311612334,4.36832242,2948.5,2947.3,0.36268043]
[1769311612533,4.36832242,2948.4,2947.3,0.36268043]
[1769311612732,4.36832242,2948.3,2947.3,0.36268043]
[1769311612933,0.36058423,2948.6,2947.3,0.36268043]
[1769311613127,4.36838259,2948.5,2947.3,0.36268043]
[1769311613328,4.36838259,2948.4,2947.3,0.36268043]
[1769311613530,4.36838259,2948.3,2947.3,0.36268043]
[1769311613730,0.36058423,2948.6,2947.3,0.0029514]
[1769311613930,4.36845923,2948.5,2947.3,0.0029514]
[1769311614131,4.36845923,2948.4,2947.3,0.0029514]
[1769311614332,4.36845923,2948.3,2947.3,0.0029514]
[1769311614638,0.36058423,2948.6,2947.3,0.0029514]
[1769311614839,4.36854197,2948.5,2947.3,0.0029514]
[1769311615029,4.36854197,2948.4,2947.3,0.0029514]
[1769311615231,4.36854197,2948.3,2947.3,0.0029514]
[1769311615530,0.36058423,2948.6,2947.3,0.0029514]
[1769311615730,4.36864055,2948.5,2947.3,0.0029514]
[1769311615928,4.36864055,2948.4,2947.3,0.0029514]
[1769311616130,4.36864055,2948.3,2947.3,0.0029514]
[1769311616328,0.36058423,2948.6,2947.3,0.0029514]
[1769311616532,4.36876151,2948.5,2947.3,0.0029514]
[1769311616732,4.36876151,2948.4,2947.3,0.0029514]
[1769311616932,4.36876151,2948.3,2947.3,0.0029514]
[1769311617131,0.36058423,2948.6,2947.3,0.0029514]
[1769311617332,4.72934171,2948.5,2947.3,0.0029514]
[1769311617533,4.36875748,2948.4,2947.3,0.0029514]
[1769311623042,4.36875748,2948.4,2947.4,1.15472963]
[1769311623241,0.36044126,2948.9,2947.4,1.15472963]
[1769311623446,4.3700525,2948.8,2947.5,0.37208282]
[1769311623645,4.3700525,2948.7,2947.5,0.37208282]
[1769311623950,0.36044126,2948.9,2947.5,0.37208282]
[1769311624141,4.36320947,2948.8,2947.5,0.37208282]
[1769311624342,0.36044126,2948.9,2947.5,0.37208282]
[1769311624541,4.36113652,2948.8,2947.6,0.37208282]
[1769311624741,0.36044126,2948.9,2947.6,0.37208282]
[1769311624946,0.36044126,2948.9,2947.8,0.78264681]
[1769311625642,0.36044126,2949.3,2947.9,1.992]
[1769311625843,4.35958541,2949.2,2947.9,1.992]
[1769311626042,4.35958541,2949.1,2947.9,1.992]
[1769311626243,0.36044126,2949.3,2947.9,1.992]
[1769311626438,4.34065522,2949.2,2947.9,1.992]
[1769311626641,4.34065522,2949.1,2947.9,1.992]
[1769311626836,0.36044126,2949.7,2948.0,0.37208282]
[1769311627044,4.34086491,2949.4,2948.2,0.78264681]
[1769311627251,4.34086491,2949.3,2948.2,0.78264681]
[1769311627446,0.36044126,2949.7,2948.2,0.78264681]
[1769311627643,4.33865272,2949.4,2948.2,0.78264681]
[1769311627948,4.33865272,2949.3,2948.2,0.78264681]
[1769311628141,3.75744126,2949.5,2948.2,0.78264681]
[1769311628342,4.33713717,2949.4,2948.2,0.78264681]
[1769311628542,3.75744126,2949.5,2948.2,0.78264681]
[1769311628738,4.33697502,2949.4,2948.2,0.78264681]
[1769311628943,3.75744126,2949.5,2948.2,0.78264681]
[1769311629239,4.33697539,2949.4,2948.2,0.78264681]
[1769311629443,3.75744126,2949.5,2948.2,0.78264681]
[1769311629750,4.33562949,2949.4,2948.2,0.78264681]
[1769311630049,3.75744126,2949.5,2948.2,0.78264681]
[1769311630245,4.33460631,2949.4,2948.2,0.78264681]
[1769311630442,3.75744126,2949.5,2948.2,0.78264681]
[1769311630637,4.33444055,2949.4,2948.2,0.78264681]
[1769311630845,3.75744126,2949.5,2948.2,0.78264681]
[1769311638151,0.34196972,2949.4,2948.2,0.78264681]
[1769311642754,0.34196972,2949.4,2947.8,0.95251681]
[1769311642962,0.34196972,2949.2,2947.9,1.992]
[1769311646758,0.34196972,2949.2,2947.8,0.95251681]
[1769311646951,0.34196972,2949.2,2947.9,1.992]
[1769311651167,4.34010707,2949.1,2947.9,1.992]
[1769311651367,0.34196972,2949.2,2947.9,1.992]
[1769311651568,4.34011318,2949.1,2947.9,1.992]
[1769311651769,0.34196972,2949.2,2947.9,1.992]
[1769311652068,4.34011426,2949.1,2947.9,1.992]
[1769311652369,0.34196972,2949.2,2947.9,1.992]
[1769311652570,4.34241205,2949.1,2947.9,1.992]
[1769311652766,0.34196972,2949.2,2947.9,1.992]
[1769311652966,4.34241152,2949.1,2947.9,1.992]
[1769311653166,0.34196972,2949.2,2947.9,1.992]
[1769311653367,4.34409534,2949.1,2947.9,1.992]
[1769311653568,0.34196972,2949.2,2947.9,1.992]
[1769311653868,4.34409527,2949.1,2947.9,1.992]
[1769311654070,0.34196972,2949.2,2947.9,1.992]
[1769311654264,4.34469355,2949.1,2947.9,1.992]
[1769311654573,0.34196972,2949.2,2947.9,1.992]
[1769311654770,4.34469078,2949.1,2947.9,1.992]
[1769311654967,0.34196972,2949.2,2947.9,1.992]
[1769311655165,4.70754246,2949.1,2947.9,1.992]
[1769311655360,4.34468974,2949.0,2947.9,1.992]
[1769311655875,4.70754246,2949.0,2947.8,0.95251681]
[1769311656065,0.36285272,2949.0,2947.9,1.992]
[1769311657573,0.36285272,2949.0,2947.8,0.95251681]
[1769311657773,0.36285272,2949.0,2947.9,1.992]
[1769311658873,4.33344526,2948.9,2947.9,1.992]
[1769311659073,0.36285272,2949.0,2947.9,1.992]
[1769311659273,4.3333282,2948.9,2947.9,1.992]
[1769311659475,0.36285272,2949.0,2947.9,1.992]
[1769311659679,4.33333014,2948.9,2947.9,1.992]
[1769311659867,0.36285272,2949.0,2947.9,1.992]
[1769311660067,4.33332991,2948.9,2947.9,1.992]
[1769311660271,0.36285272,2949.0,2947.9,1.992]
[1769311660573,4.33327628,2948.9,2947.9,1.992]
[1769311660871,0.36285272,2949.0,2947.9,1.992]
[1769311661074,4.33327583,2948.9,2947.9,1.992]
[1769311661370,0.36285272,2949.0,2947.9,1.992]
[1769311661567,4.33325157,2948.9,2947.9,1.992]
[1769311661770,0.36285272,2949.0,2947.9,1.992]
[1769311661968,4.33325116,2948.9,2947.9,1.992]
[1769311662171,0.36285272,2949.0,2947.9,1.992]
[1769311662370,4.33325964,2948.9,2947.9,1.992]
[1769311662571,0.36285272,2949.0,2947.9,1.992]
[1769311662776,4.33325964,2948.9,2947.9,1.992]
[1769311663077,0.36285272,2949.0,2947.9,1.992]
[1769311663378,4.33330368,2948.9,2947.9,1.992]
[1769311663578,0.36285272,2949.0,2947.9,1.992]
[1769311663780,4.33330357,2948.9,2947.9,1.992]
[1769311663970,0.36285272,2949.0,2947.9,1.992]
[1769311664173,4.33330129,2948.9,2947.9,1.992]
[1769311664381,0.36285272,2949.0,2947.9,1.992]
[1769311664582,4.33337745,2948.9,2947.9,1.992]
[1769311664880,0.36285272,2949.0,2947.9,1.992]
[1769311665070,4.33337593,2948.9,2947.9,1.992]
[1769311665275,0.36285272,2949.0,2947.9,1.992]
[1769311665479,4.33349548,2948.9,2947.9,1.992]
[1769311665682,0.36285272,2949.0,2947.9,1.992]
[1769311665880,4.3335024,2948.9,2947.9,1.992]
[1769311666080,0.36285272,2949.3,2947.9,1.992]
[1769311666380,4.33366976,2949.2,2947.9,1.992]
[1769311666580,4.33366976,2949.1,2947.9,1.992]
[1769311666781,4.33366976,2949.0,2947.9,1.992]
[1769311667082,4.33366976,2948.9,2947.9,1.992]
[1769311667383,0.36285272,2949.3,2947.9,1.992]
[1769311667581,4.33387469,2949.2,2947.9,1.992]
[1769311667782,4.33387469,2949.1,2947.8,0.52863758]
[1769311667982,4.33387469,2949.0,2947.9,1.992]
[1769311668282,4.33387469,2948.9,2947.9,1.992]
[1769311668486,0.36285272,2949.3,2947.9,1.992]
[1769311668680,4.33413169,2949.2,2947.9,1.992]
[1769311668875,4.33413169,2949.1,2948.1,0.78227334]
[1769311669078,4.33413169,2949.0,2948.1,0.78227334]
[1769311669278,0.36285272,2949.3,2948.1,0.78227334]
[1769311669478,4.33444486,2949.2,2948.1,0.78227334]
[1769311669777,4.33444486,2949.1,2948.1,0.78227334]
[1769311669979,4.33444486,2949.0,2948.1,0.78227334]
[1769311670181,0.36285272,2949.3,2948.1,0.78227334]
[1769311670382,4.33483852,2949.2,2948.1,0.78227334]
[1769311670583,4.33483852,2949.1,2948.1,0.78227334]
[1769311670783,4.33483852,2949.0,2948.1,0.78227334]
[1769311670982,0.36285272,2949.2,2948.1,0.78227334]
[1769311671182,4.33483961,2949.1,2948.1,0.78227334]
[1769311671383,4.33483961,2949.0,2948.1,0.78227334]
[1769311671585,0.36285272,2949.2,2948.1,0.78227334]
[1769311671781,4.33535962,2949.1,2948.1,0.78227334]
[1769311671987,4.33535962,2949.0,2948.1,0.78227334]
[1769311672285,4.33614583,2948.9,2948.1,0.78227334]
[1769311672487,0.36285272,2949.2,2948.1,0.78227334]
[1769311672784,4.33614583,2949.1,2948.1,0.78227334]
[1769311672982,4.33614583,2949.0,2948.1,0.78227334]
[1769311673176,4.33614583,2948.9,2948.1,0.78227334]
[1769311673377,0.36285272,2949.2,2948.1,0.78227334]
[1769311673578,4.33614863,2949.1,2948.1,0.78227334]
[1769311673778,4.33614863,2949.0,2948.1,0.78227334]
[1769311673978,4.33614863,2948.9,2948.1,0.78227334]
[1769311674190,0.36285272,2949.2,2948.1,0.78227334]
[1769311674390,4.33616608,2949.1,2948.1,0.78227334]
[1769311674685,4.33616608,2949.0,2948.1,0.78227334]
[1769311674887,4.33616608,2948.9,2948.1,0.78227334]
[1769311675092,0.36285272,2949.2,2948.1,0.78227334]
[1769311675388,4.3361856,2949.1,2948.1,0.78227334]
[1769311675586,4.3361856,2949.0,2948.1,0.78227334]
[1769311675789,4.3361856,2948.9,2948.1,0.78227334]
[1769311675989,0.36285272,2949.2,2948.1,0.78227334]
[1769311676287,4.3361853,2949.1,2948.1,0.78227334]
[1769311676481,4.3361853,2949.0,2948.1,0.78227334]
[1769311676676,4.3361853,2948.9,2948.1,0.78227334]
[1769311676881,0.36285272,2949.2,2948.1,0.78227334]
[1769311677177,4.33621137,2949.1,2948.1,0.78227334]
[1769311677383,4.33621137,2949.0,2948.1,0.78227334]
[1769311677584,4.33621137,2948.9,2948.1,0.78227334]
[1769311677885,0.36285272,2949.2,2948.1,0.78227334]
[1769311678078,4.33624079,2949.1,2948.1,0.78227334]
[1769311678278,4.33624079,2949.0,2948.1,0.78227334]
[1769311678577,4.33624079,2948.9,2948.1,0.78227334]
[1769311678881,0.36285272,2949.2,2948.1,0.78227334]
[1769311679080,4.33627586,2949.1,2948.1,0.78227334]
[1769311679279,4.33627586,2949.0,2948.1,0.78227334]
[1769311679487,4.33627586,2948.9,2948.1,0.78227334]
[1769311679682,0.36285272,2949.2,2948.1,0.78227334]
[1769311679882,4.33631908,2949.1,2948.1,0.78227334]
[1769311680179,4.33631908,2949.0,2948.1,0.78227334]
[1769311680384,4.33631908,2948.9,2948.1,0.78227334]
[1769311680579,0.36285272,2949.2,2948.1,0.78227334]
[1769311680790,4.33635328,2949.1,2948.1,0.78227334]
[1769311680991,4.33635328,2949.0,2948.1,0.78227334]
[1769311681182,4.33635328,2948.9,2948.1,0.78227334]
[1769311681387,0.36285272,2949.1,2948.1,0.78227334]
[1769311681588,4.33641048,2949.0,2948.1,0.78227334]
[1769311681787,4.33641048,2948.9,2948.1,0.78227334]
[1769311681987,0.36285272,2949.1,2948.1,0.78227334]
[1769311682188,4.33641078,2949.0,2948.1,0.78227334]
[1769311682388,4.33641078,2948.9,2948.1,0.78227334]
[1769311682590,0.36285272,2949.1,2948.1,0.78227334]
[1769311682789,4.33649176,2949.0,2948.1,0.78227334]
[1769311682992,4.33649176,2948.9,2948.1,0.78227334]
[1769311683190,0.36285272,2949.1,2948.1,0.78227334]
[1769311683391,4.33667152,2949.0,2948.1,0.78227334]
[1769311683592,4.33667152,2948.9,2948.1,0.78227334]
[1769311683798,0.36285272,2949.1,2948.1,0.78227334]
[1769311683989,4.33666915,2949.0,2948.1,0.78227334]
[1769311684192,4.33666915,2948.9,2948.1,0.78227334]
[1769311684399,0.36285272,2949.1,2948.1,0.78227334]
[1769311684598,4.33678501,2949.0,2948.1,0.78227334]
[1769311684798,4.33678501,2948.9,2948.1,0.78227334]
[1769311684990,0.36285272,2949.1,2948.1,0.78227334]
[1769311685187,4.33678543,2949.0,2948.1,0.78227334]
[1769311685388,4.33678543,2948.9,2948.1,0.78227334]
[1769311685593,0.36285272,2949.1,2948.1,0.78227334]
[1769311685792,4.33692741,2949.0,2948.1,0.78227334]
[1769311685997,4.33692741,2948.9,2948.1,0.78227334]
[1769311686199,0.36285272,2949.1,2948.1,0.78227334]
[1769311686398,0.35605674,2948.9,2947.9,0.78227334]
[1769311686696,0.35605674,2948.9,2948.0,1.992]
[1769311689499,0.35605674,2948.9,2947.9,0.78227334]
[1769311689689,0.35605674,2948.9,2948.0,1.992]
[1769311691602,0.35605674,2948.9,2947.9,0.78227334]
[1769311691999,0.35605674,2948.8,2947.5,0.78227334]
[1769311692302,4.33757071,2948.7,2947.6,1.992]
[1769311692501,0.35605674,2948.8,2947.6,1.992]
[1769311692696,4.33598259,2948.7,2947.6,1.992]
[1769311692896,0.35605674,2948.8,2947.5,0.78227334]
[1769311693092,0.3732001,2948.6,2947.6,1.992]
[1769311694603,4.33336875,2948.5,2947.6,1.992]
[1769311694901,0.3732001,2948.6,2947.6,1.992]
[1769311695101,4.33336434,2948.5,2947.6,1.992]
[1769311695302,0.3732001,2948.6,2947.6,1.992]
[1769311695505,4.33190696,2948.5,2947.6,1.992]
[1769311695804,0.3732001,2948.6,2947.6,1.992]
[1769311696003,4.33190892,2948.5,2947.6,1.992]
[1769311696195,0.3732001,2948.6,2947.6,1.992]
[1769311696596,0.3732001,2948.6,2947.5,0.78227334]
[1769311696797,0.3732001,2948.6,2947.6,1.992]
[1769311699504,0.3732001,2948.6,2947.5,0.78227334]
[1769311699705,0.3732001,2948.6,2947.5,2.77427334]
[1769311708311,0.78227334,2948.9,2947.5,2.77427334]
[1769311708511,4.32708997,2948.8,2947.5,2.77427334]
[1769311708712,4.32708997,2948.7,2947.5,2.77427334]
[1769311708915,4.32708997,2948.6,2947.5,2.77427334]
[1769311709113,1.15547344,2948.9,2947.5,2.77427334]
[1769311709309,4.3271542,2948.8,2947.5,2.77427334]
[1769311709509,4.3271542,2948.7,2947.5,2.77427334]
[1769311709708,4.3271542,2948.6,2947.5,2.77427334]
[1769311709909,1.15547344,2948.9,2947.5,2.77427334]
[1769311710110,4.32718768,2948.8,2947.5,2.77427334]
[1769311710411,4.32718768,2948.7,2947.5,2.77427334]
[1769311710707,4.32718768,2948.6,2947.5,2.77427334]
[1769311710908,1.15547344,2948.9,2947.5,2.77427334]
[1769311711109,4.32723123,2948.8,2947.5,2.77427334]
[1769311711410,4.32723123,2948.7,2947.5,2.77427334]
[1769311711709,4.32723123,2948.6,2947.5,2.77427334]
[1769311711908,1.15547344,2948.9,2947.5,2.77427334]
[1769311712111,4.32740292,2948.8,2947.5,2.77427334]
[1769311712310,4.32740292,2948.7,2947.5,2.77427334]
[1769311712511,1.15547344,2947.7,2946.3,0.78227334]
[1769311712819,4.32740292,2947.6,2946.3,0.78227334]
[1769311713010,0.35847192,2947.6,2946.3,0.78227334]
[1769311713410,0.36137215,2947.6,2946.3,0.78596658]
[1769311714620,0.36137215,2947.6,2946.3,0.00369324]
[1769311714621,0.35847192,2947.4,2946.3,0.00369324]
[1769311720828,0.35847192,2947.4,2946.3,0.78596658]
[1769311721129,0.00290023,2947.6,2946.5,0.78227334]
[1769311730840,0.00290023,2947.6,2946.3,0.36616241]
[1769311736338,4.3299736,2947.5,2946.3,0.36616241]
[1769311736637,0.00290023,2947.6,2946.3,0.36616241]
[1769311736839,4.33025856,2947.5,2946.3,0.36616241]
[1769311737036,0.00290023,2947.6,2946.3,0.36616241]
[1769311737338,4.33025887,2947.5,2946.3,0.36616241]
[1769311737538,0.00290023,2947.6,2946.3,0.36616241]
[1769311737740,4.33179485,2947.5,2946.3,0.36616241]
[1769311737932,0.00290023,2947.6,2946.3,0.36616241]
[1769311738236,4.33179459,2947.5,2946.3,0.36616241]
[1769311738437,0.00290023,2947.6,2946.3,0.36616241]
[1769311738637,4.33362502,2947.5,2946.3,0.36616241]
[1769311738841,0.00290023,2947.6,2946.3,0.36616241]
[1769311739138,4.33362575,2947.5,2946.3,0.36616241]
[1769311739332,4.33586858,2947.4,2946.3,0.36616241]
[1769311739526,0.00290023,2947.6,2946.3,0.36616241]
[1769311739733,4.3358685,2947.5,2946.3,0.36616241]
[1769311740033,4.3358685,2947.4,2946.3,0.36616241]
[1769311740233,0.00290023,2947.6,2946.3,0.36616241]
[1769311740428,4.3384783,2947.5,2946.3,0.36616241]
[1769311740639,4.3384783,2947.4,2946.3,0.36616241]
[1769311740837,0.00290023,2947.6,2946.3,0.36616241]
[1769311741035,4.33847904,2947.5,2946.3,0.36616241]
[1769311741238,4.33847904,2947.4,2946.3,0.36616241]
[1769311741436,4.33847904,2947.3,2946.3,0.36616241]
[1769311741636,0.00290023,2947.6,2946.3,0.36616241]
[1769311741943,4.3424649,2947.5,2946.3,0.36616241]
[1769311742134,4.3424649,2947.4,2946.3,0.36616241]
[1769311742335,4.3424649,2947.3,2946.3,0.36616241]
[1769311742537,4.3424649,2947.2,2946.3,0.36616241]
[1769311742736,4.3424649,2947.1,2946.3,0.36616241]
[1769311742930,0.00290023,2947.6,2946.3,0.36616241]
[1769311743135,4.35163012,2947.5,2946.3,0.36616241]
[1769311743339,4.35163012,2947.4,2946.3,0.36616241]
[1769311743537,4.35163012,2947.3,2946.3,0.36616241]
[1769311743738,4.35163012,2947.2,2946.3,0.36616241]
[1769311743936,4.35163012,2947.1,2946.3,0.36616241]
[1769311744233,0.00290023,2947.6,2946.3,0.36616241]
[1769311744534,4.35240112,2947.5,2946.3,0.36616241]
[1769311744733,4.35240112,2947.4,2946.3,0.36616241]
[1769311744939,4.35240112,2947.3,2946.3,0.36616241]
[1769311745139,4.35240112,2947.2,2946.3,0.36616241]
[1769311745340,4.35240112,2947.1,2946.3,0.36616241]
[1769311745544,0.00290023,2947.6,2946.3,0.36616241]
[1769311745842,4.35274567,2947.5,2946.3,0.36616241]
[1769311746041,4.35274567,2947.4,2946.3,0.36616241]
[1769311746242,4.35274567,2947.3,2946.3,0.36616241]
[1769311746443,4.35274567,2947.2,2946.3,0.36616241]
[1769311746644,4.35274567,2947.1,2946.3,0.36616241]
[1769311746847,0.00290023,2947.6,2946.3,0.36616241]
[1769311747048,4.35239435,2947.5,2946.3,0.36616241]
[1769311747247,4.35239435,2947.4,2946.3,0.36616241]
[1769311747448,4.35239435,2947.3,2946.3,0.36616241]
[1769311747646,4.35239435,2947.2,2946.3,0.36616241]
[1769311747852,4.35239435,2947.1,2946.3,0.36616241]
[1769311748041,0.00290023,2947.6,2946.3,0.36616241]
[1769311748242,4.35239581,2947.5,2946.3,0.36616241]
[1769311748442,4.35239581,2947.4,2946.3,0.36616241]
[1769311748641,4.35239581,2947.3,2946.3,0.36616241]
[1769311748947,4.35239581,2947.2,2946.3,0.36616241]
[1769311749148,4.35239581,2947.1,2946.3,0.36616241]
[1769311749348,0.00290023,2947.6,2946.3,0.36616241]
[1769311749651,4.35230853,2947.5,2946.3,0.36616241]
[1769311749844,4.35230853,2947.4,2946.3,0.36616241]
[1769311750148,4.35230853,2947.3,2946.3,0.36616241]
[1769311750349,4.35230853,2947.2,2946.3,0.36616241]
[1769311750549,0.00290023,2947.6,2946.3,0.36616241]
[1769311750848,4.35214678,2947.5,2946.3,0.36616241]
[1769311751047,4.35214678,2947.4,2946.3,0.36616241]
[1769311751246,4.35214678,2947.3,2946.3,0.36616241]
[1769311751546,0.00290023,2947.6,2946.3,0.36616241]
[1769311751547,4.35214678,2947.2,2946.3,0.36616241]
[1769311751748,0.00290023,2947.6,2946.3,0.36616241]
[1769311752048,4.35208809,2947.5,2946.3,0.36616241]
[1769311752348,4.35208809,2947.4,2946.3,0.36616241]
[1769311752547,4.35208809,2947.3,2946.3,0.36616241]
[1769311752749,0.00290023,2947.6,2946.3,0.36616241]
[1769311752950,4.35203696,2947.5,2946.3,0.36616241]
[1769311753149,4.35203696,2947.4,2946.3,0.36616241]
[1769311753348,4.35203696,2947.3,2946.3,0.36616241]
[1769311753550,0.00290023,2947.6,2946.3,0.36616241]
[1769311753851,4.35165874,2947.5,2946.3,0.36616241]
[1769311754049,4.35165874,2947.4,2946.3,0.36616241]
[1769311754348,4.35165874,2947.3,2946.3,0.36616241]
[1769311754548,0.00290023,2947.6,2946.3,0.36616241]